{"text_format":"1","workbook":"xlsx","n_sheets":4,"sheets":["HNZ","Formulář_HNZ","Seznamy","Obrázky"],"not_rendered":{"charts":0,"images":11,"macros":1,"external_links":0,"defined_names":42,"comments":0,"pivot_tables":0},"unopened":[],"bounds":{"document_bytes":16777216,"sheet_cells":100000,"rows_first":2000,"rows_last":500,"rows_between":2000,"halvings":0,"cell_chars":16384,"cell_head_chars":4096},"cells_cut":0,"cells_raw":0,"read":"whole","date_system":"1900"}

{"sheet":"HNZ","index":0,"n_rows":105,"n_cols":30,"rows_kept":105,"cut":false,"hidden":false,"merged":[[104,1,104,6],[104,8,104,11],[104,12,104,17],[105,0,114,6],[105,8,114,17],[79,0,79,17],[80,1,80,6],[80,8,80,11],[80,12,80,17],[81,0,90,6],[81,8,90,17],[92,1,92,6],[92,8,92,11],[92,12,92,17],[55,25,55,29],[59,25,59,29],[54,25,54,29],[56,25,56,29],[58,25,58,29],[47,25,47,29],[51,25,51,29],[93,0,102,6],[93,8,102,17],[79,24,83,24],[53,13,53,17],[55,13,55,17],[63,25,63,29],[61,0,61,2],[63,0,63,2],[51,0,51,2],[53,0,53,2],[55,0,55,2],[57,0,57,2],[59,0,59,2],[47,0,47,2],[49,0,49,2],[77,13,77,15],[77,16,77,17],[21,24,27,24],[23,0,23,2],[0,26,0,34],[5,26,5,34],[27,16,27,17],[9,11,9,12],[9,13,9,17],[27,13,27,15],[19,13,19,17],[21,25,21,29],[10,25,10,28],[25,0,25,2],[27,0,27,2],[21,0,21,2],[25,26,25,29],[23,26,23,29],[0,5,0,13],[15,13,15,17],[0,0,0,2],[6,11,6,13],[9,0,9,2],[1,26,1,34],[2,26,2,34],[3,26,3,34],[31,27,45,27],[31,28,45,28],[31,29,45,29],[36,0,36,2],[38,0,38,2],[40,0,40,2],[34,13,34,17],[36,13,36,17],[30,0,30,2],[45,13,45,17],[42,13,42,15],[42,16,42,17],[33,0,33,2],[31,25,45,25],[31,26,45,26],[38,13,38,17],[40,13,40,17],[32,0,32,2],[45,0,45,2],[61,13,61,17],[63,13,63,17],[77,5,77,8],[77,0,77,2],[75,16,75,17],[75,0,75,2],[75,13,75,15],[67,0,67,2],[69,0,69,2],[71,0,71,2],[73,0,73,2],[67,13,67,17],[69,13,69,17],[71,13,71,17],[73,13,73,17],[65,0,65,2],[65,13,65,17],[57,13,57,17],[59,13,59,17],[11,13,11,17],[13,13,13,17],[10,13,10,17],[29,13,29,17],[44,13,44,17],[17,13,17,17],[42,0,42,2],[47,13,47,17],[49,13,49,17],[51,13,51,17],[11,0,11,2],[13,0,13,2],[15,0,15,2],[17,0,17,2],[19,0,19,2],[21,13,21,17],[23,13,23,17],[25,13,25,17],[34,0,34,2],[30,13,30,17],[32,13,32,17],[4,26,4,34],[0,25,4,25],[7,5,7,9],[8,5,8,9],[7,11,7,13],[8,11,8,13],[0,24,9,24],[4,11,4,13],[5,11,5,13],[6,5,6,9],[1,5,1,9],[2,5,2,9],[3,5,3,9],[4,5,4,9],[5,5,5,9],[9,5,9,9],[2,11,2,13],[6,14,6,17],[7,15,8,16],[6,25,7,25],[3,11,3,13]]}
["Hodnotitel",null,null,null,null,null,null,null,null,null,null,null,null,null,null,null,null,null,null,null,null,null,null,null,"Nápověda",1,"Vyplňte jméno, osobní číslo a definujte pracoviště hodnotitele"]
["Rok ",null,null,null,null,"DATUM",null,null,null,null,null,{"$f":"TODAY()","v":"2025-04-03"},null,null,null,"VEDOUCÍ ZAMĚSTNANEC",null,null,null,null,null,null,null,null,null,null,"Rok - VYBRAT Z DEFINOVANÉHO SEZNAMU"]
["Jméno",null,"NEVYPLNĚNO",null,null,null,null,null,null,null,null,null,null,null,null,"ZAMĚSTNANEC",null,null,1,null,null,null,null,null,null,null,"Jméno - VYPLNIT V JAKÉMKOLIV FORMÁTU"]
["Osobní číslo",null,"NEVYPLNĚNO",null,null,null,null,null,null,null,null,null,null,null,null,null,null,null,null,null,null,null,null,null,null,null,"Osobní číslo - VYPLNIT BEZ ANALYTICKÉ EVIDENCE (bez tečky a bez čísel za tečkou)"]
[null,null,null,null,null,null,null,null,null,null,null,null,null,null,null,null,null,null,null,null,null,null,null,null,null,null,"Definice pracoviště - VYBRAT Z DEFINOVANÝCH SEZNAMŮ (postupujte postupně od buňky C6 (K6) po buňku C9 (K9), dokud Vám definované seznamy dovolí"]
["Součást/Fakulta",null,null,null,null,null,null,null,null,null,null,null,null,null,null,null,null,null,null,null,null,null,null,null,null,2,"Vyberte, zdali hodnotíte \"Vedoucího zaměstnance\" či \"Zaměstnance\""]
["Pracoviště - úroveň I",null,null,null,null,null,null,null,null,null,null,null,null,null,"Hodnocené skupiny kritérií",null,null,null,null,null,null,null,null,null,null,3,"Ohodnotťe jednotlivé otázky (můžete použít nápovědu k hodnocení jednotlivých otázek - buňky AA24 a AA26), zároveň u skupiny B a C můžete doplnit vlastní kritérium"]
["Pracoviště - úroveň II",null,null,null,null,null,null,null,null,null,null,null,null,null,null,{"$f":"IF(V43>0,IF(V76=0,\"AB\",\"ABC\"),IF(V43=0,IF(V76=0,\"A\",\"AC\")))","v":"A"},null,null,null,null,null,null,null,null,null,null,"Povinná je pouze skupina kritérií \"A\", u ostatních skupin můžete zvolit libovolné množství otázek, včetně možnosti nehodnotit"]
["Pracoviště - úroveň III",null,null,null,null,null,null,null,null,null,null,null,null,null,null,null,null,null,null,null,null,null,null,null,null,4,"Archivujte formulář pomocí tlačítka \"Archivovat\" (vytvoří se Vám nová záložka)"]
["HODNOCENÁ KRITÉRIA",null,null,null,null,"STUPNICE BODŮ",null,null,null,null,null,"BODY",null,"POZNÁMKA",null,null,null,null,null,null,null,null,null,null,null,5,"Uveďte formulář do defaultního nastavení pomocí talčítka \"Vymazat formulář\")"]
["A - Pracovní výkon a výsledky zaměstnance / vedoucího zaměstnance",null,null,null,null,1,2,3,4,5,null,"Absolutní","Přepočtené","(prostor pro krátkou poznámku či slovní hodnocení)",null,null,null,null,"Přepínač","A -Body","P-Body","MIN","MAX",null,null,"Váha přepočtených bodů"]
["1 - Kvalita plnění pracovních úkolů a dodržování nastavených postupů",null,null,null,null,null,null,null,null,null,null,{"$f":"T12","v":1},{"$f":"IF(V43>0,IF(V76=0,T12*AA16,T12*AA18),IF(V43=0,IF(V76=0,T12,T12*AA20)))","v":1},null,null,null,null,null,1,{"$f":"S12","v":1},{"$f":"IF(V43>0,IF(V76=0,T12*AA16,T12*AA18),IF(V43=0,IF(V76=0,T12,T12*AA20)))","v":1},{"$f":"IF(T12=0,\"\",1)","v":1},null,null,null,"Skupina kritérií","A","B","C"]
[null,null,null,null,null,null,null,null,null,null,null,null,null,null,null,null,null,null,1]
["2 - Množství plněných pracovních úkolů",null,null,null,null,null,null,null,null,null,null,{"$f":"T14","v":1},{"$f":"IF(V43>0,IF(V76=0,T14*AA16,T14*AA18),IF(V43=0,IF(V76=0,T14,T14*AA20)))","v":1},null,null,null,null,null,1,{"$f":"S14","v":1},{"$f":"IF(V43>0,IF(V76=0,T14*AA16,T14*AA18),IF(V43=0,IF(V76=0,T14,T14*AA20)))","v":1},{"$f":"IF(T14=0,\"\",1)","v":1},null,null,null,"A",1,0,0]
[null,null,null,null,null,null,null,null,null,null,null,null,null,null,null,null,null,null,1]
["3 - Dodržování termínů",null,null,null,null,null,null,null,null,null,null,{"$f":"T16","v":1},{"$f":"IF(V43>0,IF(V76=0,T16*AA16,T16*AA18),IF(V43=0,IF(V76=0,T16,T16*AA20)))","v":1},null,null,null,null,null,1,1,{"$f":"IF(V43>0,IF(V76=0,T16*AA16,T16*AA18),IF(V43=0,IF(V76=0,T16,T16*AA20)))","v":1},1,null,null,null,"A+B",0.66700000000000004,{"$f":"1-AA16","v":0.33299999999999996},0]
[null,null,null,null,null,null,null,null,null,null,null,null,null,null,null,null,null,null,1]
["4 - Úroveň a využití odborných příp. jazykových znalostí",null,null,null,null,null,null,null,null,null,null,{"$f":"T18","v":1},{"$f":"IF(V43>0,IF(V76=0,T18*AA16,T18*AA18),IF(V43=0,IF(V76=0,T18,T18*AA20)))","v":1},null,null,null,null,null,1,1,{"$f":"IF(V43>0,IF(V76=0,T18*AA16,T18*AA18),IF(V43=0,IF(V76=0,T18,T18*AA20)))","v":1},1,null,null,null,"A+B+C",0.6,0.3,{"$f":"1-AA18-AB18","v":0.10000000000000003}]
[null,null,null,null,null,null,null,null,null,null,null,null,null,null,null,null,null,null,1]
["5 - Úroveň a využití specifických znalostí (PC, inf. systémy, řidičské schopn...)",null,null,null,null,null,null,null,null,null,null,{"$f":"T20","v":1},{"$f":"IF(V43>0,IF(V76=0,T20*AA16,T20*AA18),IF(V43=0,IF(V76=0,T20,T20*AA20)))","v":1},null,null,null,null,null,1,1,{"$f":"IF(V43>0,IF(V76=0,T20*AA16,T20*AA18),IF(V43=0,IF(V76=0,T20,T20*AA20)))","v":1},1,null,null,null,"A+C",0.85,0,{"$f":"1-AA20","v":0.15000000000000002}]
[null,null,null,null,null,null,null,null,null,null,null,null,null,null,null,null,null,null,1]
[{"$f":"IF(S3=1,\"6 - Motivace podřízených\",\"\")","v":"6 - Motivace podřízených"},null,null,null,null,null,null,null,null,null,null,{"$f":"IF(S3=1,T22,\"\")","v":1},{"$f":"IF(S3=1,IF(V43>0,IF(V76=0,T22*AA16,T22*AA18),IF(V43=0,IF(V76=0,T22,T22*AA20))),\"\")","v":1},null,null,null,null,null,1,{"$f":"IF(S3=2,0,S22)","v":1},{"$f":"IF(S3=1,IF(V43>0,IF(V76=0,T22*AA16,T22*AA18),IF(V43=0,IF(V76=0,T22,T22*AA20))),0)","v":1},1,null,null,"Nápověda","Nápověda k hodnotící stupinici jednotlivých otázek"]
[null,null,null,null,null,null,null,null,null,null,null,null,null,null,null,null,null,null,1]
[{"$f":"IF(S3=1,\"7 - Zajištění zájmu o rozvoj podřízených\",\"\")","v":"7 - Zajištění zájmu o rozvoj podřízených"},null,null,null,null,null,null,null,null,null,null,{"$f":"IF(S3=1,T24,\"\")","v":1},{"$f":"IF(S3=1,IF(V43>0,IF(V76=0,T24*AA16,T24*AA18),IF(V43=0,IF(V76=0,T24,T24*AA20))),\"\")","v":1},null,null,null,null,null,1,{"$f":"IF(S3=2,0,S24)","v":1},{"$f":"IF(S3=1,IF(V43>0,IF(V76=0,T24*AA16,T24*AA18),IF(V43=0,IF(V76=0,T24,T24*AA20))),0)","v":1},1]
[null,null,null,null,null,null,null,null,null,null,null,null,null,null,null,null,null,null,1]
[{"$f":"IF(S3=1,\"8 - Delegování úkolů na podřízené\",\"\")","v":"8 - Delegování úkolů na podřízené"},null,null,null,null,null,null,null,null,null,null,{"$f":"IF(S3=1,T26,\"\")","v":1},{"$f":"IF(S3=1,IF(V43>0,IF(V76=0,T26*AA16,T26*AA18),IF(V43=0,IF(V76=0,T26,T26*AA20))),\"\")","v":1},null,null,null,null,null,1,{"$f":"IF(S3=2,0,S26)","v":1},{"$f":"IF(S3=1,IF(V43>0,IF(V76=0,T26*AA16,T26*AA18),IF(V43=0,IF(V76=0,T26,T26*AA20))),0)","v":1},1]
[]
["Celkový počet bodů za skupinu kritérií",null,null,null,null,null,null,null,null,null,null,{"$f":"T28","v":8},{"$f":"IF(V43>0,IF(V76=0,T28*AA16,T28*AA18),IF(V43=0,IF(V76=0,T28,T28*AA20)))","v":8},"Hodnocení",null,null,{"$f":"IF(S3=1,Seznamy!AK9,Seznamy!AN9)","v":"Nevyhovující"},null,null,{"$f":"T12+T14+T16+T18+T20+T22+T24+T26","v":8},{"$f":"U12+U14+U16+U18+U20+U22+U24+U26","v":8},{"$f":"COUNT(V12:V26)","v":8},{"$f":"V28*5","v":40},null,null,1,2,3,4,5]
[]
["B - Dodržování pracovních povinností / kázně",null,null,null,"Nehodnotit",1,2,3,4,5,null,"Absolutní","Přepočtené","(prostor pro krátkou poznámku či slovní hodnocení)",null,null,null,null,"Přepínač","A -Body","P-Body","MIN","MAX",null,null,"Nevyhovující","Méně uspokojivý","Dobrý (standard)","Velmi dobrý","Vynikající"]
["1 - Dodržování a využívání pracovní doby",null,null,null,null,null,null,null,null,null,null,{"$f":"IF($V$43=0,\"\",IF(T31>0,T31,\"\"))","v":""},{"$f":"IF(T31=0,\"\",IF($V$43>0,IF($V$76=0,T31*$AB$16,T31*$AB$18),IF($V$43=0,IF($V$76=0,T31*$AB$14,T31*$AB$20))))","v":""},null,null,null,null,null,6,{"$f":"IF(S31=6,0,S31)","v":0},{"$f":"IF(T31=0,0,IF($V$43>0,IF($V$76=0,T31*$AB$16,T31*$AB$18),IF($V$43=0,IF($V$76=0,T31*$AB$14,T31*$AB$20))))","v":0},{"$f":"IF(S31=6,\"\",1)","v":""}]
[null,null,null,null,null,null,null,null,null,null,null,null,null,null,null,null,null,null,6,null,null,null,null,null,null,{"$f":"IF(AA26=\"\",\"\",VLOOKUP(AA26,Seznamy!AZ:BE,2,0))","v":""},{"$f":"IF(AA26=\"\",\"\",VLOOKUP(AA26,Seznamy!AZ:BE,3,0))","v":""},{"$f":"IF(AA26=\"\",\"\",VLOOKUP(AA26,Seznamy!AZ:BE,4,0))","v":""},{"$f":"IF(AA26=\"\",\"\",VLOOKUP(AA26,Seznamy!AZ:BE,5,0))","v":""},{"$f":"IF(AA26=\"\",\"\",VLOOKUP(AA26,Seznamy!AZ:BE,6,0))","v":""}]
["2 - Dodržování pracovní kázně",null,null,null,null,null,null,null,null,null,null,{"$f":"IF($V$43=0,\"\",IF(T33>0,T33,\"\"))","v":""},{"$f":"IF(T33=0,\"\",IF($V$43>0,IF($V$76=0,T33*$AB$16,T33*$AB$18),IF($V$43=0,IF($V$76=0,T33*$AB$14,T33*$AB$20))))","v":""},null,null,null,null,null,6,{"$f":"IF(S33=6,0,S33)","v":0},{"$f":"IF(T33=0,0,IF($V$43>0,IF($V$76=0,T33*$AB$16,T33*$AB$18),IF($V$43=0,IF($V$76=0,T33*$AB$14,T33*$AB$20))))","v":0},{"$f":"IF(S33=6,\"\",1)","v":""}]
[null,null,null,null,null,null,null,null,null,null,null,null,null,null,null,null,null,null,6]
[null,null,null,"vl.",null,null,null,null,null,null,null,"","",null,null,null,null,null,6,{"$f":"IF(S35=6,0,S35)","v":0},0,""]
[null,null,null,null,null,null,null,null,null,null,null,null,null,null,null,null,null,null,6]
[null,null,null,"vl.",null,null,null,null,null,null,null,"","",null,null,null,null,null,6,0,0,""]
[null,null,null,null,null,null,null,null,null,null,null,null,null,null,null,null,null,null,6]
[null,null,null,"vl.",null,null,null,null,null,null,null,"","",null,null,null,null,null,6,0,0,""]
[null,null,null,null,null,null,null,null,null,null,null,null,null,null,null,null,null,null,6]
[null,null,null,"vl.",null,null,null,null,null,null,null,"","",null,null,null,null,null,6,0,0,""]
[]
["Celkový počet bodů za skupinu kritérií",null,null,null,null,null,null,null,null,null,null,{"$f":"IF(T43=0,\"\",T43)","v":""},{"$f":"IF(U43=0,\"\",U43)","v":""},"Hodnocení",null,null,{"$f":"IF(T43=0,\"\",Seznamy!AK18)","v":""},null,null,{"$f":"T31+T33+T35+T37+T39+T41","v":0},{"$f":"U31+U33+U35+U37+U39+U41","v":0},{"$f":"COUNT(V31:V41)","v":0},{"$f":"V43*5","v":0}]
[]
["C - Pracovní chování a osobnostní předpoklady",null,null,null,"Nehodnotit",1,2,3,4,5,null,"Absolutní","Přepočtené","(prostor pro krátkou poznámku či slovní hodnocení)",null,null,null,null,"Přepínač","A -Body","P-Body","MIN","MAX"]
["1 - Komunikace se spolupracovníky",null,null,null,null,null,null,null,null,null,null,{"$f":"IF($V$76=0,\"\",IF(T46>0,T46,\"\"))","v":""},{"$f":"IF(T46=0,\"\",IF($V$43>0,IF($V$76=0,T46*$AC$16,T46*$AC$18),IF($V$43=0,IF($V$76=0,T46*$AC$14,T46*$AC$20))))","v":""},null,null,null,null,null,6,{"$f":"IF(S46=6,0,S46)","v":0},{"$f":"IF(T46=0,0,IF($V$43>0,IF($V$76=0,T46*$AC$16,T46*$AC$18),IF($V$43=0,IF($V$76=0,T46*$AC$14,T46*$AC$20))))","v":0},{"$f":"IF(S46=6,\"\",1)","v":""}]
[null,null,null,null,null,null,null,null,null,null,null,null,null,null,null,null,null,null,6]
["2 - Poskytování informací",null,null,null,null,null,null,null,null,null,null,{"$f":"IF($V$76=0,\"\",IF(T48>0,T48,\"\"))","v":""},{"$f":"IF(T48=0,\"\",IF($V$43>0,IF($V$76=0,T48*$AC$16,T48*$AC$18),IF($V$43=0,IF($V$76=0,T48*$AC$14,T48*$AC$20))))","v":""},null,null,null,null,null,6,{"$f":"IF(S48=6,0,S48)","v":0},{"$f":"IF(T48=0,0,IF($V$43>0,IF($V$76=0,T48*$AC$16,T48*$AC$18),IF($V$43=0,IF($V$76=0,T48*$AC$14,T48*$AC$20))))","v":0},{"$f":"IF(S48=6,\"\",1)","v":""},null,null,null,"Bodové rozmezí pro slovní hodnocení jednotlivých oblastí (hodnoceno dle absolutních bodů)"]
[null,null,null,null,null,null,null,null,null,null,null,null,null,null,null,null,null,null,6]
["3 - Spolupráce s ostatními zaměstnanci",null,null,null,null,null,null,null,null,null,null,"","",null,null,null,null,null,6,0,0,"",null,null,null,"Nevyhovující","Méně uspokojivý","Dobrý (standard)","Velmi dobrý","Vynikající"]
[null,null,null,null,null,null,null,null,null,null,null,null,null,null,null,null,null,null,6]
["4 - Ochota převzít přidělené úkoly",null,null,null,null,null,null,null,null,null,null,"","",null,null,null,null,null,6,0,0,"",null,null,null,"A - Pracovní výkon a výsledky zaměstnance / vedoucího zaměstnance"]
[null,null,null,null,null,null,null,null,null,null,null,null,null,null,null,null,null,null,6]
["5 - Ochota přístupu ke změnám postupů",null,null,null,null,null,null,null,null,null,null,"","",null,null,null,null,null,6,0,0,"",null,null,null,{"$f":"IF(S3=1,Seznamy!AK33,Seznamy!AL33)","v":"8-14"},{"$f":"IF(S3=1,Seznamy!AK34,Seznamy!AL34)","v":"15-20"},{"$f":"IF(S3=1,Seznamy!AK35,Seznamy!AL35)","v":"21-26"},{"$f":"IF(S3=1,Seznamy!AK36,Seznamy!AL36)","v":"27-33"},{"$f":"IF(S3=1,Seznamy!AK37,Seznamy!AL37)","v":"34-40"}]
[null,null,null,null,null,null,null,null,null,null,null,null,null,null,null,null,null,null,6]
["6 - Přístup ke zvyšování kvalifikace a vzdělávání se",null,null,null,null,null,null,null,null,null,null,"","",null,null,null,null,null,6,0,0,"",null,null,null,{"$f":"IF($V$43>0,\"B - Dodržování pracovních povinností / kázně\",\"\")","v":""}]
[null,null,null,null,null,null,null,null,null,null,null,null,null,null,null,null,null,null,6]
["7 - Spolehlivost",null,null,null,null,null,null,null,null,null,null,"","",null,null,null,null,null,6,0,0,"",null,null,null,{"$f":"IF(V43=0,\"\",Seznamy!AK39)","v":""},{"$f":"IF(V43=0,\"\",IF(S5=1,\"\",Seznamy!AK40))","v":""},{"$f":"IF(V43=0,\"\",IF(S5=1,\"\",Seznamy!AK41))","v":""},{"$f":"IF(V43=0,\"\",IF(S5=1,\"\",Seznamy!AK42))","v":""},{"$f":"IF(V43=0,\"\",IF(S5=1,\"\",Seznamy!AK43))","v":""}]
[null,null,null,null,null,null,null,null,null,null,null,null,null,null,null,null,null,null,6]
["8 - Samostatnost a rozhodnost",null,null,null,null,null,null,null,null,null,null,"","",null,null,null,null,null,6,0,0,"",null,null,null,{"$f":"IF($V$76>0,\"C - Pracovní chování a osobnostní předpoklady\",\"\")","v":""}]
[null,null,null,null,null,null,null,null,null,null,null,null,null,null,null,null,null,null,6]
["9 - Řešení konfliktů",null,null,null,null,null,null,null,null,null,null,"","",null,null,null,null,null,6,0,0,"",null,null,null,{"$f":"IF(V76=0,\"\",Seznamy!AK45)","v":""},{"$f":"IF(V76=0,\"\",Seznamy!AK46)","v":""},{"$f":"IF(V76=0,\"\",Seznamy!AK47)","v":""},{"$f":"IF(V76=0,\"\",Seznamy!AK48)","v":""},{"$f":"IF(V76=0,\"\",Seznamy!AK49)","v":""}]
[null,null,null,null,null,null,null,null,null,null,null,null,null,null,null,null,null,null,6]
["10 - Odolnost vůči zátěži",null,null,null,null,null,null,null,null,null,null,"","",null,null,null,null,null,6,0,0,"",null,null,null,"Bodové rozmezí pro slovní hodnocení CELKOVÉ (hodnoceno dle přepočtených bodů)"]
[null,null,null,null,null,null,null,null,null,null,null,null,null,null,null,null,null,null,6]
["11 - Osobní hygiena",null,null,null,null,null,null,null,null,null,null,"","",null,null,null,null,null,6,0,0,"",null,null,null,{"$f":"Seznamy!AK51","v":"8-14,4"},{"$f":"Seznamy!AK52","v":"14,5-20,9"},{"$f":"Seznamy!AK53","v":"21-27,4"},{"$f":"Seznamy!AK54","v":"27,5-33,9"},{"$f":"Seznamy!AK55","v":"34-40"}]
[null,null,null,null,null,null,null,null,null,null,null,null,null,null,null,null,null,null,6]
[null,null,null,"vl.",null,null,null,null,null,null,null,"","",null,null,null,null,null,6,0,0,""]
[null,null,null,null,null,null,null,null,null,null,null,null,null,null,null,null,null,null,6]
[null,null,null,"vl.",null,null,null,null,null,null,null,"","",null,null,null,null,null,6,0,0,""]
[null,null,null,null,null,null,null,null,null,null,null,null,null,null,null,null,null,null,6]
[null,null,null,"vl.",null,null,null,null,null,null,null,"","",null,null,null,null,null,6,0,0,""]
[null,null,null,null,null,null,null,null,null,null,null,null,null,null,null,null,null,null,6]
[null,null,null,"vl.",null,null,null,null,null,null,null,"","",null,null,null,null,null,6,0,0,""]
[]
["Celkový počet bodů za skupinu kritérií",null,null,null,null,null,null,null,null,null,null,{"$f":"IF(T76=0,\"\",T76)","v":""},{"$f":"IF(U76=0,\"\",U76)","v":""},"Hodnocení",null,null,{"$f":"IF(T76=0,\"\",Seznamy!AK27)","v":""},null,null,{"$f":"T46+T48+T50+T52+T54+T56+T58+T60+T62+T64+T66+T68+T70+T72+T74","v":0},{"$f":"U46+U48+U50+U52+U54+U56+U58+U60+U62+U64+U66+U68+U70+U72+U74","v":0},{"$f":"COUNT(V46:V74)","v":0},{"$f":"V76*5","v":0}]
[]
["CELKEM POČET BODŮ",null,null,null,null,null,null,null,null,null,null,{"$f":"T78","v":8},{"$f":"U78","v":8},"Hodnocení",null,null,{"$f":"Seznamy!AR9","v":"Nevyhovující"},null,null,{"$f":"T28+T43+T76","v":8},{"$f":"U28+U43+U76","v":8},{"$f":"V83","v":8},{"$f":"W83","v":40}]
[]
["NADSTANDARDNÍ SLOVNÍ HODNOCENÍ",null,null,null,null,null,null,null,null,null,null,null,null,null,null,null,null,null,null,null,null,{"$f":"IF(V43>0,IF(V76=0,V28*AA16,V28*AA18),IF(V43=0,IF(V76=0,V28,V28*AA20)))","v":8},{"$f":"IF(V43>0,IF(V76=0,V28*AA16*5,V28*AA18*5),IF(V43=0,IF(V76=0,V28*5,V28*AA20*5)))","v":40},null,"Nápověda"]
["Název 1:",null,null,null,null,null,null,null,"Název 2:",null,null,null,null,null,null,null,null,null,null,null,null,{"$f":"IF(V43>0,IF(V76=0,V43*AB16,V43*AB18),IF(V43=0,IF(V76=0,V43*AB14,V43*AB20)))","v":0},{"$f":"IF(V43>0,IF(V76=0,V43*AB16*5,V43*AB18*5),IF(V43=0,IF(V76=0,V43*AB14*5,V43*AB20*5)))","v":0},null,null,"Pokud potřebujete nadstandardně slovně ohodnotit zaměstnance, můžete použít těchto šesti zvětšených polí"]
[null,null,null,null,null,null,null,null,null,null,null,null,null,null,null,null,null,null,null,null,null,{"$f":"IF(V43>0,IF(V76=0,V76*AC16,V76*AC18),IF(V43=0,IF(V76=0,V76*AC14,V76*AC20)))","v":0},{"$f":"IF(V43>0,IF(V76=0,V76*AC16*5,V76*AC18*5),IF(V43=0,IF(V76=0,V76*AC14*5,V76*AC20*5)))","v":0},null,null,"V případě, že se toto hodnocení týká nějakého vyplněného kritéria, napište prosím jeho celé znění za buňku \"Název\""]
[null,null,null,null,null,null,null,null,null,null,null,null,null,null,null,null,null,null,null,null,"CELKEM",{"$f":"SUM(V80:V82)","v":8},{"$f":"SUM(W80:W82)","v":40}]
[]
[]
[]
[]
[]
[]
[]
[]
[]
["Název 3:",null,null,null,null,null,null,null,"Název 4:"]
[]
[]
[]
[]
[]
[]
[]
[]
[]
[]
[]
["Název 5:",null,null,null,null,null,null,null,"Název 6:"]

{"sheet":"Formulář_HNZ","index":1,"n_rows":65,"n_cols":18,"rows_kept":65,"cut":false,"hidden":true,"merged":[[48,12,52,19],[61,17,61,18],[47,13,47,19],[10,12,11,19],[0,12,0,13],[0,15,0,16],[0,17,9,19],[46,0,46,1],[47,0,47,1],[44,5,44,9],[45,5,45,9],[46,5,46,9],[47,5,47,9],[29,0,29,1],[28,5,28,9],[29,5,29,9],[44,0,44,1],[45,0,45,1],[32,3,32,4],[32,5,32,9],[33,0,33,1],[34,0,34,1],[35,0,35,1],[36,0,36,1],[12,13,12,19],[25,5,25,9],[30,5,30,8],[35,5,35,9],[36,5,36,9],[21,5,21,8],[12,5,12,9],[26,5,26,9],[27,5,27,9],[24,5,24,9],[41,12,45,19],[19,13,19,19],[26,13,26,19],[33,13,33,19],[40,13,40,19],[13,12,17,19],[20,12,24,19],[27,12,31,19],[34,12,38,19],[49,5,49,9],[43,5,43,9],[38,5,38,9],[39,5,39,9],[40,5,40,9],[41,5,41,9],[42,5,42,9],[33,5,33,9],[34,5,34,9],[48,5,48,8],[37,5,37,9],[0,7,9,9],[2,3,2,4],[12,3,12,4],[23,3,23,4],[23,5,23,9],[18,5,18,9],[19,5,19,9],[20,5,20,9],[15,5,15,9],[16,5,16,9],[0,3,0,6],[4,3,4,4],[4,5,4,6],[10,5,11,9],[22,5,22,9],[17,5,17,9],[14,5,14,9],[13,5,13,9],[50,0,50,1],[10,0,11,1],[38,0,38,1],[39,0,39,1],[40,0,40,1],[41,0,41,1],[18,0,18,1],[19,0,19,1],[21,0,21,1],[24,0,24,1],[25,0,25,1],[30,0,30,1],[20,0,20,1],[15,0,15,1],[16,0,16,1],[17,0,17,1],[37,0,37,1],[26,0,26,1],[27,0,27,1],[28,0,28,1],[50,5,50,8],[31,5,31,9],[61,6,61,7],[0,0,0,1],[13,0,13,1],[14,0,14,1],[9,3,9,4],[10,3,10,4],[6,5,6,6],[42,0,42,1],[43,0,43,1],[48,0,48,1],[3,3,3,4],[5,3,5,4],[1,5,1,6],[2,5,2,6],[3,5,3,6],[5,5,5,6],[6,3,6,4],[7,3,7,4],[8,3,8,4],[7,5,7,6],[8,5,8,6],[9,5,9,6]]}
["Hodnotitel",null,null,null,null,null,null,null,null,null,null,null,"Hodnotitel"]
["Rok ",{"$f":"IF(K2=0,\"\",HNZ!C2)","v":""},null,"DATUM",{"$f":"TODAY()","v":"2025-04-03"},null,null,null,null,null,{"$f":"HNZ!C2","v":0},null,"Rok ",{"$f":"B2","v":""}]
["Jméno",{"$f":"IF(K3=0,\"\",HNZ!C3)","v":"NEVYPLNĚNO"},null,null,null,null,null,null,null,null,{"$f":"HNZ!C3","v":"NEVYPLNĚNO"},{"$f":"HNZ!L3","v":0},"Jméno",{"$f":"B3","v":"NEVYPLNĚNO"}]
["Osobní číslo",{"$f":"IF(K4=0,\"\",HNZ!C4)","v":"NEVYPLNĚNO"},null,null,null,null,null,null,null,null,{"$f":"HNZ!C4","v":"NEVYPLNĚNO"},{"$f":"HNZ!L4","v":0},"Osobní číslo",{"$f":"B4","v":"NEVYPLNĚNO"}]
["Vedoucí zaměstnanec",{"$f":"IF(HNZ!S3=1,\"ANO\",\"NE\")","v":"ANO"},null,null,null,null,null,null,null,null,null,null,"Vedoucí zaměstnanec",{"$f":"B5","v":"ANO"}]
[null,null,null,null,null,null,null,null,null,null,{"$f":"HNZ!C5","v":0},{"$f":"HNZ!L5","v":0}]
["Součást/Fakulta",{"$f":"IF(K7=0,\"\",HNZ!C6)","v":""},null,null,null,null,null,null,null,null,{"$f":"HNZ!C6","v":0},{"$f":"HNZ!#REF!","v":{"$error":"#REF!"}},"Součást/Fakulta",{"$f":"B7","v":""}]
["Pracoviště - úroveň I",{"$f":"IF(K8=0,\"\",HNZ!C7)","v":""},null,null,null,null,null,null,null,null,{"$f":"HNZ!C7","v":0},{"$f":"HNZ!L6","v":0},"Pracoviště - úroveň I",{"$f":"B8","v":""}]
["Pracoviště - úroveň II",{"$f":"IF(K9=0,\"\",HNZ!C8)","v":""},null,null,null,null,null,null,null,null,{"$f":"HNZ!C8","v":0},{"$f":"HNZ!L8","v":0},"Pracoviště - úroveň II",{"$f":"B9","v":""}]
["Pracoviště - úroveň III",{"$f":"IF(K10=0,\"\",HNZ!C9)","v":""},null,null,null,null,null,null,null,null,{"$f":"HNZ!C9","v":0},{"$f":"HNZ!L9","v":0},"Pracoviště - úroveň III",{"$f":"B10","v":""}]
["HODNOCENÁ KRITÉRIA",null,null,"BODY",null,"POZNÁMKA",null,null,null,null,null,null,"NADSTANDARDNÍ SLOVNÍ HODNOCENÍ"]
[null,null,null,"Absolutní","Přepočtené"]
["A - Pracovní výkon a výsledky zaměstnance / vedoucího zaměstnance",null,null,null,null,null,null,null,null,null,null,null,"Název:",{"$f":"IF(HNZ!B81=\"\",\"\",HNZ!B81)","v":""}]
[{"$f":"HNZ!A12","v":"1 - Kvalita plnění pracovních úkolů a dodržování nastavených postupů"},null,null,{"$f":"HNZ!L12","v":1},{"$f":"HNZ!M12","v":1},{"$f":"IF(K14=0,\"\",HNZ!N12)","v":""},null,null,null,null,{"$f":"HNZ!N12","v":0},null,{"$f":"IF(HNZ!A82=\"\",\"\",HNZ!A82)","v":""}]
[{"$f":"HNZ!A14","v":"2 - Množství plněných pracovních úkolů"},null,null,{"$f":"HNZ!L14","v":1},{"$f":"HNZ!M14","v":1},{"$f":"IF(K15=0,\"\",HNZ!N14)","v":""},null,null,null,null,{"$f":"HNZ!N14","v":0}]
[{"$f":"HNZ!A16","v":"3 - Dodržování termínů"},null,null,{"$f":"HNZ!L16","v":1},{"$f":"HNZ!M16","v":1},{"$f":"IF(K16=0,\"\",HNZ!N16)","v":""},null,null,null,null,{"$f":"HNZ!N16","v":0}]
[{"$f":"HNZ!A18","v":"4 - Úroveň a využití odborných příp. jazykových znalostí"},null,null,{"$f":"HNZ!L18","v":1},{"$f":"HNZ!M18","v":1},{"$f":"IF(K17=0,\"\",HNZ!N18)","v":""},null,null,null,null,{"$f":"HNZ!N18","v":0}]
[{"$f":"HNZ!A20","v":"5 - Úroveň a využití specifických znalostí (PC, inf. systémy, řidičské schopn...)"},null,null,{"$f":"HNZ!L20","v":1},{"$f":"HNZ!M20","v":1},{"$f":"IF(K18=0,\"\",HNZ!N20)","v":""},null,null,null,null,{"$f":"HNZ!N20","v":0}]
[{"$f":"HNZ!A22","v":"6 - Motivace podřízených"},null,null,{"$f":"HNZ!L22","v":1},{"$f":"HNZ!M22","v":1},{"$f":"IF(K19=0,\"\",HNZ!N22)","v":""},null,null,null,null,{"$f":"HNZ!N22","v":0}]
[{"$f":"HNZ!A24","v":"7 - Zajištění zájmu o rozvoj podřízených"},null,null,{"$f":"HNZ!L24","v":1},{"$f":"HNZ!M24","v":1},{"$f":"IF(K20=0,\"\",HNZ!N24)","v":""},null,null,null,null,{"$f":"HNZ!N24","v":0},null,"Název:",{"$f":"IF(HNZ!M81=\"\",\"\",HNZ!M81)","v":""}]
[{"$f":"HNZ!A26","v":"8 - Delegování úkolů na podřízené"},null,null,{"$f":"HNZ!L26","v":1},{"$f":"HNZ!M26","v":1},{"$f":"IF(K21=0,\"\",HNZ!N26)","v":""},null,null,null,null,{"$f":"HNZ!N26","v":0},null,{"$f":"IF(HNZ!I82=\"\",\"\",HNZ!I82)","v":""}]
["Celkový počet bodů za skupinu kritérií",null,null,{"$f":"HNZ!L28","v":8},{"$f":"HNZ!M28","v":8},"Hodnocení",null,null,null,{"$f":"HNZ!Q28","v":"Nevyhovující"}]
[]
["B - Dodržování pracovních povinností / kázně"]
[{"$f":"IF(HNZ!T43=0,\"\",HNZ!A31)","v":""},null,null,{"$f":"IF(HNZ!T43=0,\"\",IF(HNZ!T31=0,\"Nehodnoceno\",HNZ!L31))","v":""},{"$f":"HNZ!M31","v":""},{"$f":"IF(K25=0,\"\",HNZ!N31)","v":""},null,null,null,null,{"$f":"HNZ!N31","v":0}]
[{"$f":"IF(HNZ!T43=0,\"\",HNZ!A33)","v":""},null,null,{"$f":"IF(HNZ!T43=0,\"\",IF(HNZ!T33=0,\"Nehodnoceno\",HNZ!L33))","v":""},{"$f":"HNZ!M33","v":""},{"$f":"IF(K26=0,\"\",HNZ!N33)","v":""},null,null,null,null,{"$f":"HNZ!N33","v":0}]
[{"$f":"IF(HNZ!T43=0,\"\",IF(HNZ!A35=0,\"\",HNZ!A35))","v":""},null,{"$f":"IF(HNZ!T43=0,\"\",IF(HNZ!A35=0,\"\",HNZ!D35))","v":""},{"$f":"IF(A27=\"\",\"\",IF(HNZ!T43=0,\"\",IF(HNZ!T35=0,\"Nehodnoceno\",HNZ!L35)))","v":""},{"$f":"IF(A27=\"\",\"\",HNZ!M35)","v":""},{"$f":"IF(K27=0,\"\",HNZ!N35)","v":""},null,null,null,null,null,null,"Název:",{"$f":"IF(HNZ!B93=\"\",\"\",HNZ!B93)","v":""}]
[{"$f":"IF(HNZ!T43=0,\"\",IF(HNZ!A37=0,\"\",HNZ!A37))","v":""},null,{"$f":"IF(HNZ!T43=0,\"\",IF(HNZ!A37=0,\"\",HNZ!D37))","v":""},{"$f":"IF(A28=\"\",\"\",IF(HNZ!T43=0,\"\",IF(HNZ!T37=0,\"Nehodnoceno\",HNZ!L37)))","v":""},{"$f":"IF(A28=\"\",\"\",HNZ!M37)","v":""},{"$f":"IF(K28=0,\"\",HNZ!N37)","v":""},null,null,null,null,null,null,{"$f":"IF(HNZ!A94=\"\",\"\",HNZ!A94)","v":""}]
[{"$f":"IF(HNZ!T43=0,\"\",IF(HNZ!A39=0,\"\",HNZ!A39))","v":""},null,{"$f":"IF(HNZ!T43=0,\"\",IF(HNZ!A39=0,\"\",HNZ!D39))","v":""},{"$f":"IF(A29=\"\",\"\",IF(HNZ!T43=0,\"\",IF(HNZ!T39=0,\"Nehodnoceno\",HNZ!L39)))","v":""},{"$f":"IF(A29=\"\",\"\",HNZ!M39)","v":""},{"$f":"IF(K29=0,\"\",HNZ!N39)","v":""}]
[{"$f":"IF(HNZ!T43=0,\"\",IF(HNZ!A41=0,\"\",HNZ!A41))","v":""},null,{"$f":"IF(HNZ!T43=0,\"\",IF(HNZ!A41=0,\"\",HNZ!D41))","v":""},{"$f":"IF(A30=\"\",\"\",IF(HNZ!T43=0,\"\",IF(HNZ!T41=0,\"Nehodnoceno\",HNZ!L41)))","v":""},{"$f":"IF(A30=\"\",\"\",HNZ!M41)","v":""},{"$f":"IF(K30=0,\"\",HNZ!N41)","v":""}]
["Celkový počet bodů za skupinu kritérií",null,null,{"$f":"HNZ!L43","v":""},{"$f":"HNZ!M43","v":""},"Hodnocení",null,null,null,{"$f":"HNZ!Q43","v":""}]
[]
["C - Pracovní chování a osobnostní předpoklady"]
[{"$f":"IF(HNZ!T76=0,\"\",HNZ!A46)","v":""},null,null,{"$f":"IF(HNZ!T76=0,\"\",IF(HNZ!T46=0,\"Nehodnoceno\",HNZ!L46))","v":""},{"$f":"HNZ!M46","v":""},{"$f":"IF(K34=0,\"\",HNZ!N46)","v":""},null,null,null,null,{"$f":"HNZ!N46","v":0},null,"Název:",{"$f":"IF(HNZ!M93=\"\",\"\",HNZ!M93)","v":""}]
[{"$f":"IF(HNZ!T76=0,\"\",HNZ!A48)","v":""},null,null,{"$f":"IF(HNZ!T76=0,\"\",IF(HNZ!T48=0,\"Nehodnoceno\",HNZ!L48))","v":""},{"$f":"HNZ!M48","v":""},{"$f":"IF(K35=0,\"\",HNZ!N48)","v":""},null,null,null,null,{"$f":"HNZ!N48","v":0},null,{"$f":"IF(HNZ!I94=\"\",\"\",HNZ!I94)","v":""}]
[{"$f":"IF(HNZ!T76=0,\"\",HNZ!A50)","v":""},null,null,{"$f":"IF(HNZ!T76=0,\"\",IF(HNZ!T50=0,\"Nehodnoceno\",HNZ!L50))","v":""},{"$f":"HNZ!M50","v":""},{"$f":"IF(K36=0,\"\",HNZ!N50)","v":""},null,null,null,null,{"$f":"HNZ!N50","v":0}]
[{"$f":"IF(HNZ!T76=0,\"\",HNZ!A52)","v":""},null,null,{"$f":"IF(HNZ!T76=0,\"\",IF(HNZ!T52=0,\"Nehodnoceno\",HNZ!L52))","v":""},{"$f":"HNZ!M52","v":""},{"$f":"IF(K37=0,\"\",HNZ!N52)","v":""},null,null,null,null,{"$f":"HNZ!N52","v":0}]
[{"$f":"IF(HNZ!T76=0,\"\",HNZ!A54)","v":""},null,null,{"$f":"IF(HNZ!T76=0,\"\",IF(HNZ!T54=0,\"Nehodnoceno\",HNZ!L54))","v":""},{"$f":"HNZ!M54","v":""},{"$f":"IF(K38=0,\"\",HNZ!N54)","v":""},null,null,null,null,{"$f":"HNZ!N54","v":0}]
[{"$f":"IF(HNZ!T76=0,\"\",HNZ!A56)","v":""},null,null,{"$f":"IF(HNZ!T76=0,\"\",IF(HNZ!T56=0,\"Nehodnoceno\",HNZ!L56))","v":""},{"$f":"HNZ!M56","v":""},{"$f":"IF(K39=0,\"\",HNZ!N56)","v":""},null,null,null,null,{"$f":"HNZ!N56","v":0}]
[{"$f":"IF(HNZ!T76=0,\"\",HNZ!A58)","v":""},null,null,{"$f":"IF(HNZ!T76=0,\"\",IF(HNZ!T58=0,\"Nehodnoceno\",HNZ!L58))","v":""},{"$f":"HNZ!M58","v":""},{"$f":"IF(K40=0,\"\",HNZ!N58)","v":""},null,null,null,null,{"$f":"HNZ!N58","v":0}]
[{"$f":"IF(HNZ!T76=0,\"\",HNZ!A60)","v":""},null,null,{"$f":"IF(HNZ!T76=0,\"\",IF(HNZ!T60=0,\"Nehodnoceno\",HNZ!L60))","v":""},{"$f":"HNZ!M60","v":""},{"$f":"IF(K41=0,\"\",HNZ!N60)","v":""},null,null,null,null,{"$f":"HNZ!N60","v":0},null,"Název:",{"$f":"IF(HNZ!B105=\"\",\"\",HNZ!B105)","v":""}]
[{"$f":"IF(HNZ!T76=0,\"\",HNZ!A62)","v":""},null,null,{"$f":"IF(HNZ!T76=0,\"\",IF(HNZ!T62=0,\"Nehodnoceno\",HNZ!L62))","v":""},{"$f":"HNZ!M62","v":""},{"$f":"IF(K42=0,\"\",HNZ!N62)","v":""},null,null,null,null,{"$f":"HNZ!N62","v":0},null,{"$f":"IF(HNZ!A106=\"\",\"\",HNZ!A106)","v":""}]
[{"$f":"IF(HNZ!T76=0,\"\",HNZ!A64)","v":""},null,null,{"$f":"IF(HNZ!T76=0,\"\",IF(HNZ!T64=0,\"Nehodnoceno\",HNZ!L64))","v":""},{"$f":"HNZ!M64","v":""},{"$f":"IF(K43=0,\"\",HNZ!N64)","v":""},null,null,null,null,{"$f":"HNZ!N64","v":0}]
[{"$f":"IF(HNZ!T76=0,\"\",HNZ!A66)","v":""},null,null,{"$f":"IF(HNZ!T76=0,\"\",IF(HNZ!T66=0,\"Nehodnoceno\",HNZ!L66))","v":""},{"$f":"HNZ!M66","v":""},{"$f":"IF(K44=0,\"\",HNZ!N66)","v":""},null,null,null,null,{"$f":"HNZ!N66","v":0}]
[{"$f":"IF(HNZ!T76=0,\"\",IF(HNZ!A68=0,\"\",HNZ!A68))","v":""},null,{"$f":"IF(HNZ!T76=0,\"\",IF(HNZ!A68=0,\"\",HNZ!D68))","v":""},{"$f":"IF(A45=\"\",\"\",IF(HNZ!T76=0,\"\",IF(HNZ!T68=0,\"Nehodnoceno\",HNZ!L68)))","v":""},{"$f":"IF(A45=\"\",\"\",HNZ!M68)","v":""},{"$f":"IF(K45=0,\"\",HNZ!N68)","v":""}]
[{"$f":"IF(HNZ!T76=0,\"\",IF(HNZ!A70=0,\"\",HNZ!A70))","v":""},null,{"$f":"IF(HNZ!T76=0,\"\",IF(HNZ!A70=0,\"\",HNZ!D70))","v":""},{"$f":"IF(A46=\"\",\"\",IF(HNZ!T76=0,\"\",IF(HNZ!T70=0,\"Nehodnoceno\",HNZ!L70)))","v":""},{"$f":"IF(A46=\"\",\"\",HNZ!M70)","v":""},{"$f":"IF(K46=0,\"\",HNZ!N70)","v":""}]
[{"$f":"IF(HNZ!T76=0,\"\",IF(HNZ!A72=0,\"\",HNZ!A72))","v":""},null,{"$f":"IF(HNZ!T76=0,\"\",IF(HNZ!A72=0,\"\",HNZ!D72))","v":""},{"$f":"IF(A47=\"\",\"\",IF(HNZ!T76=0,\"\",IF(HNZ!T72=0,\"Nehodnoceno\",HNZ!L72)))","v":""},{"$f":"IF(A47=\"\",\"\",HNZ!M72)","v":""},{"$f":"IF(K47=0,\"\",HNZ!N72)","v":""}]
[{"$f":"IF(HNZ!T76=0,\"\",IF(HNZ!A74=0,\"\",HNZ!A74))","v":""},null,{"$f":"IF(HNZ!T76=0,\"\",IF(HNZ!A74=0,\"\",HNZ!D74))","v":""},{"$f":"IF(A48=\"\",\"\",IF(HNZ!T76=0,\"\",IF(HNZ!T74=0,\"Nehodnoceno\",HNZ!L74)))","v":""},{"$f":"IF(A48=\"\",\"\",HNZ!M74)","v":""},{"$f":"IF(K48=0,\"\",HNZ!N74)","v":""},null,null,null,null,null,null,"Název:",{"$f":"IF(HNZ!M105=\"\",\"\",HNZ!M105)","v":""}]
["Celkový počet bodů za skupinu kritérií",null,null,{"$f":"HNZ!L76","v":""},{"$f":"HNZ!M76","v":""},"Hodnocení",null,null,null,{"$f":"HNZ!Q76","v":""},null,null,{"$f":"IF(HNZ!I106=\"\",\"\",HNZ!I106)","v":""}]
[]
["CELKEM POČET BODŮ",null,null,{"$f":"HNZ!L78","v":8},{"$f":"HNZ!M78","v":8},"Hodnocení",null,null,null,{"$f":"HNZ!Q78","v":"Nevyhovující"}]
[]
[null,null,null,null,null,"Nevyhovující","Méně uspokojivý","Dobrý (standard)","Velmi dobrý","Vynikající"]
[null,null,null,null,"A",{"$f":"HNZ!Z54","v":"8-14"},{"$f":"HNZ!AA54","v":"15-20"},{"$f":"HNZ!AB54","v":"21-26"},{"$f":"HNZ!AC54","v":"27-33"},{"$f":"HNZ!AD54","v":"34-40"}]
[null,null,null,null,"B",{"$f":"HNZ!Z58","v":""},{"$f":"HNZ!AA58","v":""},{"$f":"HNZ!AB58","v":""},{"$f":"HNZ!AC58","v":""},{"$f":"HNZ!AD58","v":""}]
[null,null,null,null,"C",{"$f":"HNZ!Z62","v":""},{"$f":"HNZ!AA62","v":""},{"$f":"HNZ!AB62","v":""},{"$f":"HNZ!AC62","v":""},{"$f":"HNZ!AD62","v":""}]
[null,null,null,null,"CELKOVÉ",{"$f":"HNZ!Z66","v":"8-14,4"},{"$f":"HNZ!AA66","v":"14,5-20,9"},{"$f":"HNZ!AB66","v":"21-27,4"},{"$f":"HNZ!AC66","v":"27,5-33,9"},{"$f":"HNZ!AD66","v":"34-40"}]
[]
[]
[]
[]
["Jméno hodnotitele",{"$f":"B3","v":"NEVYPLNĚNO"},null,null,"Jméno nadřízeného",null,"_ _ _ _ _ _ _ _ _ _ _ _ _ _ _ _ _ _ _ _ _ _ _ _ _ _",null,null,null,null,null,"Jméno hodnotitele",{"$f":"N3","v":"NEVYPLNĚNO"},null,null,"Jméno nadřízeného","_ _ _ _ _ _ _ _ _ _ _ _ _ _ _ _ _ _ _ _ _ _ _ _ _ _"]
[]
[]
["Datum a podpis","_ _ _ _ _ _ _ _ _ _ _ _ _ _ _ _ _ _ _ _ _ _ _ _ _ _ _ _ _ ",null,null,"Převzal - datum a podpis",null,"_ _ _ _ _ _ _ _ _ _ _ _ _ _ _ _ _ _ _ _ _ _ _ _ _ _",null,null,null,null,null,"Převzal - datum a podpis","_ _ _ _ _ _ _ _ _ _ _ _ _ _ _ _ _ _ _ _ _ _ _ _ _ _ _",null,null,"Převzal - datum a podpis","_ _ _ _ _ _ _ _ _ _ _ _ _ _ _ _ _ _ _ _ _ _ _ _ _ _"]

{"sheet":"Seznamy","index":2,"n_rows":55,"n_cols":57,"rows_kept":55,"cut":false,"hidden":true,"merged":[]}
["Součást","Rektorát","Fakulta","Jiné pracoviště","Účelové zařízení","Pedagogická fakulta","Teologická fakulta","Fakulta_zemědělská_a_technologická","Přírodovědecká fakulta","Zdravotně sociální fakulta","Fakulta rybářství a ochrany vod","Filozofická fakulta","Ekonomická fakulta","Koleje a menzy","Předškolní zařízení","Úsek rektora","Úsek kvestora","Úseky prorektorů","Akademická knihovna","Centrum informačních technologií","Britské centrum","Goethe centrum","Kancelář rektora","Ekonomický odbor","Investiční odbor","Úsek prorektora pro studium","Úsek prorektora pro zahraniční vztahy","Úsek prorektora pro vědu a výzkum","Úsek prorektora pro vnitřní hodnocení","Úsek prorektora pro rozvoj","Vedení Akademické knihovny","Nakladatelství","Úsek_prorektora_pro_řízení_a_vnější_vztahy",null,"Pro slovní hodnocení - dílčí",null,null,null,null,null,null,"Pro slovní hodnocení - celkové",null,null,null,"Rok","Skupina kritérií","A","B","C"]
["Rektorát","Úsek_rektora","Ekonomická_fakulta","Akademická_knihovna","Koleje_a_menzy","Děkan, děkanát","Děkan, děkanát","Děkan, děkanát","Děkan, děkanát","Děkan, děkanát","Děkan, děkanát","Děkan, děkanát","Děkan, děkanát","Ředitel","Ředitel","Rektor","Kvestor","Úsek_prorektora_pro_studium","Ředitel","Ředitel","Ředitel","Ředitel","Útvar autoprovozu","Útvar metodický","Útvar investiční výstavby","Prorektor pro studium","Prorektor pro zahraniční vztahy","Prorektor pro vědu a výzkum","Prorektor pro vnitřní hodnocení","Prorektor pro rozvoj","Odd. správy knih. syst. a inf. techn.","Ředitel","Prorektor pro řízení a vnější vztahy",null,"A",null,"Vedoucí",null,null,"Nevedoucí",null,null,null,"A",null,2017,"A_","1 - Kvalita plnění pracovních úkolů a dodržování nastavených postupů","1 - Dodržování a využívání pracovní doby","1 - Komunikace se spolupracovníky",null,"1 - Kvalita plnění pracovních úkolů a dodržování nastavených postupů","Kvalita plnění pracovních úkolů je hluboce pod standardem. Výstupy jsou vráceny k přepracování. Nedodržuje kvalitu zadaných úkolů.","Kvalita plnění pracovních úkolů neodpovídá zcela standardu. Jsou nutné časté opravy a kontrola. Osoba nepracuje samostatně.","Kvalita plnění pracovních úkolů je bez výkyvů a v očekávané kvalitě.","Kvalita plnění pracovních úkolů dosahuje nadstandardní úrovně. Výstupy mají znaky efektivity a tvořivosti.","Kvalita plnění pracovních úkolů je na vynikající úrovni. Úkoly plní na základě vlastních návrhů. Vysoce překračuje standardní úroveň."]
["Fakulta","Úsek_kvestora","Fakulta_rybářství_a_ochrany_vod","Centrum_informačních_technologií","Předškolní_zařízení","Proděkani a tajemník","Proděkani a tajemník","Proděkani a tajemník","Proděkani a tajemník","Proděkani a tajemníci","Proděkani a tajemník","Proděkani a tajemník","Proděkani a tajemník","Útvar ekonomický","Součást předškolního zařízení - Dětská skupina Kvítek 1 a Dětská skupina Kvítek 2","Kancelář_rektora","Kancelář kvestora","Úsek_prorektora_pro_zahraniční_vztahy","Útvar správy knihovního systému a IT","Útvar správy informační infrastruktury","Zaměstnanci BC","Zaměstnanci GC",null,"Útvar rozpočtu","Útvar energetiky","Útvar pro studijní činnost","Útvar pro zahraniční vztahy","Útvar pro vědu a výzkum","Útvar pro vnitřní hodnocení","Útvar pro strategii a rozvoj","Odd. inf. služeb a podpory studia","Zaměstnanci Nakladatelství","Útvar marketingu",null,34,40,"Vynikající",22,25,"Vynikající",null,{"$f":"AQ4+0.1","v":34},{"$f":"ROUND(HNZ!W78,1)","v":40},"Vynikající",null,2018,"B_","2 - Množství plněných pracovních úkolů","2 - Dodržování pracovní kázně","2 - Poskytování informací  ",null,"2 - Množství plněných pracovních úkolů","Množství vykonané práce je zcela nedostatečné. Úkoly neplní v termínu, vyhýbá se jejich plnění. Je nutná častá a opakovaná urgence.","Plní zadané množství pracovních úkolů, při kterých je potřeba občasná urgence a kontrola.","Množství plnění pracovních úkolů je bez výkyvů a v očekávaném množství.","Množství plnění pracovních úkolů je v nadstandardní úrovni.","Množství plnění pracovních úkolů je v nadstandardní úrovni na základě vlastní iniciativy nad rámec zařazení."]
["Jiné_pracoviště","Úseky_prorektorů","Filozofická_fakulta","Britské_centrum",null,"Katedra anglistiky","Katedra etiky, psychologie a charitativní péče","Katedra agroekosystémů","Katedra biologie ekosystémů","Ústav fyzioterapie a vybraných medicínských oborů","Výzkumný ústav rybářský a hydrobiologický (ve Vodňanech)","Archeologický ústav","Katedra práva","Útvar kolejí",null,"Útvar interního auditu","Ekonomický_odbor","Úsek_prorektora_pro_vědu_a_výzkum","Útvar Informačních služeb a podpory studia","Útvar správy koncových zařízení",null,null,null,"Útvar mzdové účtárny",null,"Centrum podpory studentů se specifickými potřebami",null,"Kancelář transferu technologií",null,"Útvar projektový ","Odd. doplňování a zpracování fondu",null,"Útvar spisové služby a podatelna ",null,27,33,"Velmi dobrý",18,21,"Velmi dobrý",null,27.5,{"$f":"ROUND((($AQ$3-$AP$7)/5)+AP4,1)","v":33.9},"Velmi dobrý",null,2019,"C_","3 - Dodržování termínů",null,"3 - Spolupráce s ostatními zaměstnanci",null,"3 - Dodržování termínů","Zadané úkoly neplní v termínu i při opakované urgenci.","Zadané úkoly plní v termínu, je však potřeba kontrola a občasná urgence.","Dodržuje termíny dle zadání a očekávání.","Práci si organizuje tak, aby dodržení termínů bylo na efektivní úrovni.","Práci organizuje takovým způsobem, aby sám určil termín zpracování, u kterého se snaží zajistit zkrácení."]
["Účelové_zařízení",null,"Pedagogická_fakulta","Goethe_centrum",null,"Katedra biologie","Katedra filosofie a religionistiky","Katedra aplikované ekologie","Katedra botaniky","Ústav humanitních studií v pomáhajících profesích","Ústav akvakultury a ochrany vod (v Českých Budějovicích)","Historický ústav","Katedra regionálního managementu","Útvar menzy",null,"Útvar právní","Investiční_odbor","Úsek_prorektora_pro_vnitřní_hodnocení","Útvar doplňování a zpracování fondu","Útvar správy informačních systémů",null,null,null,"Útvar provozní účtárny",null,"Útvar pro celoživotní vzdělávání",null,null,null,null,"Odd. výpůjčních služeb a ochrany fondu",null,null,null,21,26,"Dobrý (standard)",14,17,"Dobrý (standard)",null,21,{"$f":"ROUND((($AQ$3-$AP$7)/5)+AP5,1)","v":27.4},"Dobrý (standard)",null,2020,null,"4 - Úroveň a využití odborných příp. jazykových znalostí",null,"4 - Ochota převzít přidělené úkoly",null,"4 - Úroveň a využití odborných příp. jazykových znalostí","Úroveň odborných znalostí naprosto neodpovídá požadavkům.","Částečně splňuje úroveň odborných znalostí.","Splňuje úroveň odborných znalostí, které umožňují jejich využívání při samostatném rozhodování.","Úroveň znalostí je ve vyšším standardu. Samostatně se rozvíjí, rozhoduje a přichází s novými variantami řešení.","Úroveň znalostí je v nadstandardní úrovni. Přináší nové myšlenky, které je ochoten předávat svému okolí."]
[null,null,"Přírodovědecká_fakulta","Nakladatelství",null,"Katedra aplikované fyziky a techniky","Katedra pedagogiky","Katedra aplikované chemie","Katedra experimentální biologie rostlin","Ústav laboratorní diagnostiky a veřejného zdraví","Ústav komplexních systémů (v Nových Hradech)","Ústav anglistiky","Katedra obchodu a cestovního ruchu","Útvar technické údržby",null,"Útvar personální","Útvar veřejných zakázek","Úsek_prorektora_pro_rozvoj","Útvar výpůjčních služeb a ochrany fondu","Helpdesk a Kartové centrum",null,null,null,"Útvar evidence majetku",null,null,null,null,null,null,"Prodejna skript",null,null,null,15,20,"Méně uspokojivý",10,13,"Méně uspokojivý",null,{"$f":"ROUND(AQ7+0.1,1)","v":14.5},{"$f":"ROUND((($AQ$3-$AP$7)/5)+AP6,1)","v":20.9},"Méně uspokojivý",null,2021,null,"5 - Úroveň a využití specifických znalostí (PC, inf. systémy, řidičské schopn. atd.)",null,"5 - Ochota přístupu ke změnám postupů",null,"5 - Úroveň a využití specifických znalostí (PC, inf. systémy, řidičské schopn. atd.)","Úroveň specifických znalostí neodpovídá požadavkům.","Částečně splňuje úroveň specifických znalostí. Nedokáže využívat znalosti na efektivní úrovni.","Splňuje úroveň specifických znalostí, které efektivně využívá.","Úroveň specifických znalostí je vyšším standardu. Samostatně vyhledává příležitost k dalšímu rozvoji.","Úroveň specifických znalostí je v nadstandardní úrovni. Znalosti je ochoten předávat svému okolí."]
[null,null,"Teologická_fakulta",null,null,"Katedra geografie","Katedra teologických věd","Katedra biologických disciplín","Katedra medicínské biologie","Ústav ošetřovatelství, porodní asistence a neodkladné péče","Mezinárodní environmentální vzdělávací, poradenské a informační středisko ochrany vod (ve Vodňanech)","Ústav archivnictví a PVH","Katedra řízení",null,null,"Útvar BOZP a PO","Útvar správy nemovitostí","Úsek_prorektora_pro_řízení_a_vnější_vztahy","Pobočka FROV",null,null,null,null,null,null,null,null,null,null,null,"Pobočka FROV",null,null,null,8,14,"Nevyhovující",5,9,"Nevyhovující",null,{"$f":"ROUND(HNZ!V78,1)","v":8},{"$f":"ROUND((($AQ$3-$AP$7)/5)+AP7,1)","v":14.4},"Nevyhovující",null,2022,null,"6 - Motivace podřízených",null,"6 - Přístup ke zvyšování kvalifikace a vzdělávání se",null,"6 - Motivace podřízených","Aktivně brání tvorbě podmínek, za kterých podřízení mohou pracovat samostatně, brání rozvoji a iniciativě podřízených.","Bez výrazné iniciativy a nedobrovolně vytváří podmínky, ve kterých podřízení mohou pracovat samostatně, nebrání svým podřízeným v rozvoji.","Vytváří podmínky pro samostatnou práci podřízených, podporuje jejich rozvoj a iniciativu.","Vytvořil podmínky tak, aby motivoval své podřízené s výraznou podporou jejich rozvoje.","Aktivně navrhuje a rozvíjí podmínky, za kterých podřízení pracují samostatně. Podřízení samostatně žádají o rozvoj a podílejí se na inovacích."]
[null,null,"Zdravotně_sociální_fakulta",null,null,"Katedra germanistiky","Oddělení jazyků","Katedra genetiky a speciální produkce rostlinné","Katedra molekulární biologie a genetiky","Ústav radiologie, toxikologie a ochrany obyvatelstva","Jihočeské výzkumné centrum akvakultury a biodiverzity hydrocenóz (ve Vodňanech)","Ústav bohemistiky","Katedra ekonomiky",null,null,"Útvar pro manažerský reporting","Útvar finanční kontroly",null,"Prodejna skript",null,null,null,null,null,null,null,null,null,null,null,null,null,null,null,null,null,null,null,null,null,null,null,null,null,null,2023,null,"7 - Zajištění zájmu o rozvoj podřízených",null,"7 - Spolehlivost",null,"7 - Zajištění zájmu o rozvoj podřízených","Aktivně brání rozvoji podřízených.","Nepodporuje, zároveň nebrání rozvoji podřízených.","Vytváří podmínky pro rozvoj zaměstnanců.","Aktivně vytváří podmínky pro rozvoj zaměstnanců. Tento rozvoj zabezpečuje a vyhodnocuje.","Navrhuje realizaci systému vzdělávání nejen na svém útvaru/úseku. Podřízení samostatně stanovují plán rozvoje."]
[null,null,"Fakulta_zemědělská_a_technologická",null,null,"Katedra hudební výchovy","Oddělení praxe","Katedra krajinného managementu","Katedra parazitologie",null,null,"Ústav česko-německých areálových studií a germanistiky","Katedra aplikované matematiky a informatiky",null,null,"Útvar kyberbezpečnosti ","Útvar správy a údržby budov",null,"Sekretariát",null,null,null,null,null,null,null,null,null,null,null,null,null,null,null,{"$f":"HNZ!L28","v":8},null,{"$f":"INDEX($AK$3:$AK$7,MATCH(AI9,$AJ$3:$AJ$7,-1))","v":"Nevyhovující"},null,null,{"$f":"INDEX($AN$3:$AN$7,MATCH(AI9,$AM$3:$AM$7,-1))","v":"Nevyhovující"},null,{"$f":"HNZ!M78","v":8},null,{"$f":"INDEX($AR$3:$AR$7,MATCH(AP9,$AQ$3:$AQ$7,-1))","v":"Nevyhovující"},null,2024,null,"8 - Delegování úkolů na podřízené",null,"8 - Samostatnost a rozhodnost",null,"8 - Delegování úkolů na podřízené","Odmítá delegovat, nedůvěřuje podřízeným. Sám neefektivně plní úkoly.","Deleguje úkoly, zříká se zodpovědnosti za jejich plnění.","Samostatně deleguje úkoly na podřízené a nezříká se zodpovědnosti za jejich plnění.","Samostatně deleguje úkoly a vyžaduje zodpovědnost za jejich plnění.","Samostatně si tvoří plán, který určuje, jaké úkoly a v jakém termínu bude delegovat, přičemž podřízení jsou o tomto plánu s předstihem informováni."]
[null,null,null,null,null,"Katedra informatiky","Oddělení celoživotního vzdělávání","Katedra potravinářských biotechnologií a kvality zemědělských produktů","Katedra zoologie",null,null,"Ústav romanistiky","Katedra účetnictví a financí",null,null,"Dokumentační středisko",null,null,null,null,null,null,null,null,null,null,null,null,null,null,null,null,null,null,null,null,null,null,null,null,null,null,null,null,null,2025,null,null,null,"9 - Řešení konfliktů",null,"1 - Dodržování a využívání pracovní doby","Pozdní příchody a brzké odchody. Inklinuje k nevýkonnosti v pracovní době.","K dodržování pracovní doby potřebuje občasnou urgenci.","Bez výhrad dodržuje pracovní dobu.","Je ochoten k práci přesčas z vlastní iniciativy.","Neřeší pracovní dobu, pracuje podle aktuálních potřeb."]
[null,null,null,null,null,"Katedra matematiky",null,"Katedra rostlinné výroby","Oddělení jazyků",null,null,"Ústav věd o umění a kultuře","Katedra jazyků",null,null,null,null,null,null,null,null,null,null,null,null,null,null,null,null,null,null,null,null,null,"B",null,null,null,null,null,null,null,null,null,null,null,null,null,null,"10 - Odolnost vůči zátěži ",null,"2 - Dodržování pracovní kázně","Hrubě nedodržuje pracovní kázeň, právní i vnitřní předpisy včetně pravidel slušného chování.","Až na výjimky dodržuje pracovní kázeň, právní i vnitřní předpisy včetně pravidel slušného chování. Výjimečný přestupek je řešen domluvou.","Dodržuje pracovní kázeň, právní i vnitřní předpisy včetně pravidel slušného chování.","Ukázkově dodržuje pracovní kázeň, právní i vnitřní předpisy včetně pravidel slušného chování.","Ukázkově dodržuje pracovní kázeň, právní i vnitřní předpisy včetně pravidel slušného chování. Příkladným chováním ovlivňuje své okolí."]
[null,null,null,null,null,"Katedra pedagogiky",null,"Katedra techniky a kybernetiky","Ústav aplikované informatiky",null,null,null,null,null,null,null,null,null,null,null,null,null,null,null,null,null,null,null,null,null,null,null,null,null,{"$f":"AJ13+0.1","v":0.1},{"$f":"ROUND(HNZ!W43,2)","v":0},"Vynikající",null,null,null,null,null,null,null,null,null,null,null,null,"11 - Osobní hygiena",null,"1 - Komunikace se spolupracovníky","Komunikuje konfliktně, nevstřícně s postranními úmysly, bezdůvodně kritizuje okolí.","Komunikuje nekonfliktně, avšak neobratně bez postranních úmyslů.","Komunikuje otevřeně a srozumitelně v rámci společenských pravidel.","Komunikuje otevřeně a vstřícně. Poskytuje srozumitelnou zpětnou vazbu.","Komunikuje srozumitelně, je otevřený vzájemné domluvě, jež má charakter směřující k řešení situace."]
[null,null,null,null,null,"Katedra primární a preprimární pedagogiky",null,"Katedra zootechnických věd","Ústav fyziky a biofyziky",null,null,null,null,null,null,null,null,null,null,null,null,null,null,null,null,null,null,null,null,null,null,null,null,null,{"$f":"AJ14+0.1","v":0.1},{"$f":"(($AJ$12-$AI$16)/5)+AJ14","v":0},"Velmi dobrý",null,null,null,null,null,null,null,null,null,null,null,null,null,null,"2 - Poskytování informací  ","Záměrně neposkytuje informace.","Lhostejný při získávání a poskytování informací.","Informace poskytuje všem spolupracovníkům.","Sdílí informace na pracovišti, podstatné informace předává spolupracovníkům. ","Získává informace a ochotně je poskytuje spolupracovníkům v časově efektivním rozmezí."]
[null,null,null,null,null,"Katedra speciální pedagogiky",null,null,"Ústav chemie a biochemie",null,null,null,null,null,null,null,null,null,null,null,null,null,null,null,null,null,null,null,null,null,null,null,null,null,{"$f":"AJ15+0.1","v":0.1},{"$f":"(($AJ$12-$AI$16)/5)+AJ15","v":0},"Dobrý (standard)",null,null,null,null,null,null,null,null,null,null,null,null,null,null,"3 - Spolupráce s ostatními zaměstnanci","Nespolupracuje s ostatními, spolupráci se záměrně vyhýbá.","Ochoten spolupracovat, avšak s obtížemi, občas vyvolá konfliktní situaci.","Ochoten spolupracovat, spolupracovníci mají prostor vyjádřit vlastní názor.","Spolupráci s ostatními podporuje a vyhledává.","Vyžaduje týmovou spolupráci, kdy je považován za odborníka."]
[null,null,null,null,null,"Katedra psychologie",null,null,"Ústav matematiky a biomatematiky",null,null,null,null,null,null,null,null,null,null,null,null,null,null,null,null,null,null,null,null,null,null,null,null,null,{"$f":"AJ16+0.1","v":0.1},{"$f":"(($AJ$12-$AI$16)/5)+AJ16","v":0},"Méně uspokojivý",null,null,null,null,null,null,null,null,null,null,null,null,null,null,"4 - Ochota převzít přidělené úkoly","Odmítá přebírat nové úkoly.","Nové úkoly přebere, neprojevuje při tom naprostou ochotu.","Přijímá nové úkoly bez výhrad na základě pokynu.","Přijímá nové úkoly bez výhrad i nad rozsah svého zařazení.","O úkoly se aktivně hlásí. Přijímá nové úkoly bez výhrad i nad rozsah svého zařazení."]
[null,null,null,null,null,"Katedra slovanských jazyků a literatur",null,null,"Centrum polární ekologie",null,null,null,null,null,null,null,null,null,null,null,null,null,null,null,null,null,null,null,null,null,null,null,null,null,{"$f":"ROUND(HNZ!V43,1)","v":0},{"$f":"ROUND((($AJ$12-$AI$16)/5)+$AI$16,2)","v":0},"Nevyhovující",null,null,null,null,null,null,null,null,null,null,null,null,null,null,"5 - Ochota přístupu ke změnám postupů","Změny postupů neakceptuje a nedodržuje.","Změny postupů přijímá s výhradami.","Přijímá a přizpůsobuje se změnám v souladu s normami a opatřeními.","Přijímá změny postupů, ochotně poskytuje rady spolupracovníkům.","Angažuje se při tvorbě nových postupů, ochotně poskytuje rady spolupracovníkům."]
[null,null,null,null,null,"Katedra společenských věd",null,null,"Laboratoř archeobotaniky a paleoekologie",null,null,null,null,null,null,null,null,null,null,null,null,null,null,null,null,null,null,null,null,null,null,null,null,null,null,null,null,null,null,null,null,null,null,null,null,null,null,null,null,null,null,"6 - Přístup ke zvyšování kvalifikace a vzdělávání se","Odmítá si zvýšit kvalifikaci a vzdělávat se i v případě, že nedosahuje požadovaného vzdělání na dané pozici.","Kvalifikaci si zvýší jen v případě uloženého úkolu či příkazu k vykonávaným pracím.","Splňuje kvalifikační požadavky. Na základě úkolu si kvalifikaci prohlubuje.","Samostatně si vyhledává příležitost k prohlubování kvalifikace a vzdělanostní úrovně.","Samostatně si vyhledává příležitost ke zvyšování kvalifikace. Kvalifikaci má na vyšší úrovni, než je požadováno."]
[null,null,null,null,null,"Katedra tělesné výchovy a sportu",null,null,null,null,null,null,null,null,null,null,null,null,null,null,null,null,null,null,null,null,null,null,null,null,null,null,null,null,{"$f":"HNZ!L43","v":""},null,{"$f":"INDEX($AK$12:$AK$16,MATCH(AI18,$AJ$12:$AJ$16,-1))","v":{"$error":"#N/A"}},null,null,null,null,null,null,null,null,null,null,null,null,null,null,"7 - Spolehlivost","Naprosto nespolehlivý, zříká se jakékoliv odpovědnosti za svá jednání.","Spolehlivý jen pod dohledem, je nutný dohled nad dohodnutým úkolem.","Pracuje spolehlivě, dodržuje dohodnuté úkoly.","Spolehlivý, dodržuje vše dohodnuté, vzbuzuje důvěru.","Spolehlivý, iniciuje dohody."]
[null,null,null,null,null,"Katedra výchovy ke zdraví",null,null,null,null,null,null,null,null,null,null,null,null,null,null,null,null,null,null,null,null,null,null,null,null,null,null,null,null,null,null,null,null,null,null,null,null,null,null,null,null,null,null,null,null,null,"8 - Samostatnost a rozhodnost","Je naprosto nesamostatný a nerozhodný.","Potřebuje potvrzení další osoby. Rozhoduje se pomalu.","V rámci svých kompetencí je samostatný a rozhodný.","Je samostatný a rozhodný. Nebojí se přijít a zastávat vlastní názory.","Je samostatný a rozhodný. Dokáže si poradit a svými názory pomáhá ostatním spolupracovníkům."]
[null,null,null,null,null,"Katedra výtvarné výchovy",null,null,null,null,null,null,null,null,null,null,null,null,null,null,null,null,null,null,null,null,null,null,null,null,null,null,null,null,"C",null,null,null,null,null,null,null,null,null,null,null,null,null,null,null,null,"9 - Řešení konfliktů","Je zdrojem konfliktních situací. Tyto situace odmítá řešit, spíše je vyvolává.","Občas se dostává do konfliktních situací, které je ochoten řešit, potřebuje k tomu ovšem další osobu.","Snaží se konfliktům předcházet. Pokud se stane součástí konfliktní situace, rychle ji vyřeší.","Je bezkonfliktní. Konfliktům předchází. Nevyhýbá se komplikovaným situacím.","Je bezkonfliktní. Konflikty řeší diplomaticky s ohledem na další vývoj."]
[null,null,null,null,null,"Ateliér arteterapie",null,null,null,null,null,null,null,null,null,null,null,null,null,null,null,null,null,null,null,null,null,null,null,null,null,null,null,null,{"$f":"AJ22+0.1","v":0.1},{"$f":"ROUND(HNZ!W76,2)","v":0},"Vynikající",null,null,null,null,null,null,null,null,null,null,null,null,null,null,"10 - Odolnost vůči zátěži ","Velice obtížně se vypořádává se zátěží na svém pracovišti.","Vypořádává se se zátěží na svém pracovišti s pomocí další osoby.","Bez potíží zvládá zátěž na svém pracovišti.","Zvládá i větší zátěž, než je na pracovišti obvyklá.","Zvládá i mimořádnou zátěž. Systematicky si určuje odpočinek."]
[null,null,null,null,null,null,null,null,null,null,null,null,null,null,null,null,null,null,null,null,null,null,null,null,null,null,null,null,null,null,null,null,null,null,{"$f":"AJ23+0.1","v":0.1},{"$f":"(($AJ$21-$AI$25)/5)+AJ23","v":0},"Velmi dobrý",null,null,null,null,null,null,null,null,null,null,null,null,null,null,"11 - Osobní hygiena","Nereprezentuje JU, zásadně chodí neupravený, nedodržuje osobní hygienu.","K reprezentaci JU potřebuje občasné upozornění k dodržení vhodného oblečení na pracovišti a osobní hygieny.","Reprezentuje JU,  chodí vhodně oblečen a dodržuje osobní hygienu.","Svým vzhledem reprezentuje JU, pečlivě dbá na osobní vzhled a hygienu.","Svým vzhledem a vystupováním reprezentuje JU. Je vzorem pro své okolí, jak v oblékání, tak v osobní hygieně."]
[null,null,null,null,null,null,null,null,null,null,null,null,null,null,null,null,null,null,null,null,null,null,null,null,null,null,null,null,null,null,null,null,null,null,{"$f":"AJ24+0.1","v":0.1},0,"Dobrý (standard)"]
[null,null,null,null,null,null,null,null,null,null,null,null,null,null,null,null,null,null,null,null,null,null,null,null,null,null,null,null,null,null,null,null,null,null,{"$f":"AJ25+0.1","v":0.1},{"$f":"(($AJ$21-$AI$25)/5)+AJ25","v":0},"Méně uspokojivý"]
[null,null,null,null,null,null,null,null,null,null,null,null,null,null,null,null,null,null,null,null,null,null,null,null,null,null,null,null,null,null,null,null,null,null,{"$f":"ROUND(HNZ!V76,2)","v":0},{"$f":"(($AJ$21-$AI$25)/5)+$AI$25","v":0},"Nevyhovující"]
[]
[null,null,null,null,null,null,null,null,null,null,null,null,null,null,null,null,null,null,null,null,null,null,null,null,null,null,null,null,null,null,null,null,null,null,{"$f":"HNZ!L76","v":""},null,{"$f":"INDEX($AK$21:$AK$25,MATCH(AI27,$AJ$21:$AJ$25,-1))","v":{"$error":"#N/A"}}]
[]
[]
[null,null,null,null,null,null,null,null,null,null,null,null,null,null,null,null,null,null,null,null,null,null,null,null,null,null,null,null,null,null,null,null,null,null,"Pro poznámkovou tabulku"]
[null,null,null,null,null,null,null,null,null,null,null,null,null,null,null,null,null,null,null,null,null,null,null,null,null,null,null,null,null,null,null,null,null,null,null,null,"A"]
[]
[null,null,null,null,null,null,null,null,null,null,null,null,null,null,null,null,null,null,null,null,null,null,null,null,null,null,null,null,null,null,null,null,null,null,null,"Nevyhovující","8-14","5-9"]
[null,null,null,null,null,null,null,null,null,null,null,null,null,null,null,null,null,null,null,null,null,null,null,null,null,null,null,null,null,null,null,null,null,null,null,"Méně uspokojivý","15-20","10-13"]
[null,null,null,null,null,null,null,null,null,null,null,null,null,null,null,null,null,null,null,null,null,null,null,null,null,null,null,null,null,null,null,null,null,null,null,"Dobrý (standard)","21-26","14-17"]
[null,null,null,null,null,null,null,null,null,null,null,null,null,null,null,null,null,null,null,null,null,null,null,null,null,null,null,null,null,null,null,null,null,null,null,"Velmi dobrý","27-33","18-21"]
[null,null,null,null,null,null,null,null,null,null,null,null,null,null,null,null,null,null,null,null,null,null,null,null,null,null,null,null,null,null,null,null,null,null,null,"Vynikající","34-40","22-25"]
[null,null,null,null,null,null,null,null,null,null,null,null,null,null,null,null,null,null,null,null,null,null,null,null,null,null,null,null,null,null,null,null,null,null,null,null,"B"]
[null,null,null,null,null,null,null,null,null,null,null,null,null,null,null,null,null,null,null,null,null,null,null,null,null,null,null,null,null,null,null,null,null,null,null,"Nevyhovující",{"$f":"CONCATENATE(AI16,AM39,AJ16)","v":"0-0"},null,"-"]
[null,null,null,null,null,null,null,null,null,null,null,null,null,null,null,null,null,null,null,null,null,null,null,null,null,null,null,null,null,null,null,null,null,null,null,"Méně uspokojivý",{"$f":"CONCATENATE(AI15,AM39,AJ15)","v":"0,1-0"}]
[null,null,null,null,null,null,null,null,null,null,null,null,null,null,null,null,null,null,null,null,null,null,null,null,null,null,null,null,null,null,null,null,null,null,null,"Dobrý (standard)",{"$f":"CONCATENATE(AI14,AM39,AJ14)","v":"0,1-0"}]
[null,null,null,null,null,null,null,null,null,null,null,null,null,null,null,null,null,null,null,null,null,null,null,null,null,null,null,null,null,null,null,null,null,null,null,"Velmi dobrý",{"$f":"CONCATENATE(AI13,AM39,AJ13)","v":"0,1-0"}]
[null,null,null,null,null,null,null,null,null,null,null,null,null,null,null,null,null,null,null,null,null,null,null,null,null,null,null,null,null,null,null,null,null,null,null,"Vynikající",{"$f":"CONCATENATE(AI12,AM39,AJ12)","v":"0,1-0"}]
[null,null,null,null,null,null,null,null,null,null,null,null,null,null,null,null,null,null,null,null,null,null,null,null,null,null,null,null,null,null,null,null,null,null,null,null,"C"]
[null,null,null,null,null,null,null,null,null,null,null,null,null,null,null,null,null,null,null,null,null,null,null,null,null,null,null,null,null,null,null,null,null,null,null,"Nevyhovující",{"$f":"CONCATENATE(AI25,AM45,AJ25)","v":"0-0"},null,"-"]
[null,null,null,null,null,null,null,null,null,null,null,null,null,null,null,null,null,null,null,null,null,null,null,null,null,null,null,null,null,null,null,null,null,null,null,"Méně uspokojivý",{"$f":"CONCATENATE(AI24,AM45,AJ24)","v":"0,1-0"}]
[null,null,null,null,null,null,null,null,null,null,null,null,null,null,null,null,null,null,null,null,null,null,null,null,null,null,null,null,null,null,null,null,null,null,null,"Dobrý (standard)",{"$f":"CONCATENATE(AI23,AM45,AJ23)","v":"0,1-0"}]
[null,null,null,null,null,null,null,null,null,null,null,null,null,null,null,null,null,null,null,null,null,null,null,null,null,null,null,null,null,null,null,null,null,null,null,"Velmi dobrý",{"$f":"CONCATENATE(AI22,AM45,AJ22)","v":"0,1-0"}]
[null,null,null,null,null,null,null,null,null,null,null,null,null,null,null,null,null,null,null,null,null,null,null,null,null,null,null,null,null,null,null,null,null,null,null,"Vynikající",{"$f":"CONCATENATE(AI21,AM45,AJ21)","v":"0,1-0"}]
[null,null,null,null,null,null,null,null,null,null,null,null,null,null,null,null,null,null,null,null,null,null,null,null,null,null,null,null,null,null,null,null,null,null,null,null,"Celkové"]
[null,null,null,null,null,null,null,null,null,null,null,null,null,null,null,null,null,null,null,null,null,null,null,null,null,null,null,null,null,null,null,null,null,null,null,"Nevyhovující",{"$f":"CONCATENATE(AP7,AM51,AQ7)","v":"8-14,4"},null,"-"]
[null,null,null,null,null,null,null,null,null,null,null,null,null,null,null,null,null,null,null,null,null,null,null,null,null,null,null,null,null,null,null,null,null,null,null,"Méně uspokojivý",{"$f":"CONCATENATE(AP6,AM51,AQ6)","v":"14,5-20,9"}]
[null,null,null,null,null,null,null,null,null,null,null,null,null,null,null,null,null,null,null,null,null,null,null,null,null,null,null,null,null,null,null,null,null,null,null,"Dobrý (standard)",{"$f":"CONCATENATE(AP5,AM51,AQ5)","v":"21-27,4"}]
[null,null,null,null,null,null,null,null,null,null,null,null,null,null,null,null,null,null,null,null,null,null,null,null,null,null,null,null,null,null,null,null,null,null,null,"Velmi dobrý",{"$f":"CONCATENATE(AP4,AM51,AQ4)","v":"27,5-33,9"}]
[null,null,null,null,null,null,null,null,null,null,null,null,null,null,null,null,null,null,null,null,null,null,null,null,null,null,null,null,null,null,null,null,null,null,null,"Vynikající",{"$f":"CONCATENATE(AP3,AM51,AQ3)","v":"34-40"}]

{"sheet":"Obrázky","index":3,"n_rows":9,"n_cols":1,"rows_kept":9,"cut":false,"hidden":true,"merged":[]}
["JU"]
["Ekonomická_fakulta"]
["Fakulta_rybářství_a_ochrany_vod"]
["Filozofická_fakulta"]
["Pedagogická_fakulta"]
["Přírodovědecká_fakulta"]
["Teologická_fakulta"]
["Zemědělská_fakulta"]
["Zdravotně_sociální_fakulta"]